bitfinex/quotes_BTCUSD_20240908
["timestamp","ask_amount","ask_price","bid_price","bid_amount"]
[1725765599690,1.36238591,54480.0,54479.0,0.001632]
[1725765600356,0.99529924,54480.0,54479.0,0.144932]
[1725765600796,0.83016068,54480.0,54479.0,0.144932]
[1725765601259,0.82816068,54480.0,54479.0,0.144932]
[1725765601484,0.82916068,54480.0,54479.0,0.144932]
[1725765601708,0.83016068,54480.0,54479.0,0.144932]
[1725765601947,0.82916068,54480.0,54479.0,0.144932]
[1725765602177,0.82816068,54480.0,54479.0,0.144932]
[1725765602412,0.82816068,54480.0,54479.0,0.149932]
[1725765602625,0.82816068,54480.0,54479.0,0.147932]
[1725765602834,0.82816068,54480.0,54479.0,0.149932]
[1725765603065,0.82816068,54480.0,54479.0,0.146932]
[1725765604917,0.82816068,54480.0,54479.0,0.149932]
[1725765606912,0.82816068,54480.0,54479.0,0.087432]
[1725765607334,1.19526768,54480.0,54479.0,0.087432]
[1725765607586,0.82816068,54480.0,54479.0,0.087432]
[1725765608905,1.19526768,54480.0,54479.0,0.087432]
[1725765612262,1.19526768,54480.0,54479.0,0.082432]
[1725765612484,1.19526768,54480.0,54479.0,0.086432]
[1725765614236,1.19526768,54480.0,54479.0,0.005632]
[1725765614237,1.72758122,54480.0,54479.0,0.005632]
[1725765614450,1.36047422,54480.0,54479.0,0.005632]
[1725765614660,1.19526768,54480.0,54479.0,0.005632]
[1725765615331,1.19526768,54480.0,54479.0,0.003632]
[1725765615548,1.19526768,54480.0,54479.0,0.004632]
[1725765615770,1.19526768,54480.0,54479.0,0.002632]
[1725765616212,1.19526768,54480.0,54479.0,0.003632]
[1725765619469,1.56237468,54480.0,54479.0,0.003632]
[1725765620357,1.19526768,54480.0,54479.0,0.003632]
[1725765621246,1.16648384,54480.0,54479.0,0.003632]
[1725765624303,1.35472893,54480.0,54479.0,0.003632]
[1725765624566,1.18948384,54480.0,54479.0,0.003632]
[1725765624800,1.21826794,54480.0,54479.0,0.003632]
[1725765625251,1.18948384,54480.0,54479.0,0.003632]
[1725765627215,1.35473314,54480.0,54479.0,0.003632]
[1725765627426,1.18948384,54480.0,54479.0,0.003632]
[1725765629153,1.3547425,54480.0,54479.0,0.003632]
[1725765629376,1.18948384,54480.0,54479.0,0.003632]
[1725765631720,1.21826784,54480.0,54479.0,0.003632]
[1725765636570,1.18948384,54480.0,54479.0,0.003632]
[1725765637417,1.18948384,54480.0,54479.0,0.144032]
[1725765639744,1.21826684,54480.0,54479.0,0.144032]
[1725765640413,1.38372734,54480.0,54479.0,0.144032]
[1725765640817,1.38371947,54480.0,54479.0,0.144032]
[1725765641956,1.21826684,54480.0,54479.0,0.144032]
[1725765642170,1.38374774,54480.0,54479.0,0.144032]
[1725765642395,1.38374699,54480.0,54479.0,0.144032]
[1725765643017,1.21826684,54480.0,54479.0,0.144032]
[1725765643235,1.38375377,54480.0,54479.0,0.144032]
[1725765645408,1.18948384,54480.0,54479.0,0.144032]
[1725765645859,1.3549813,54480.0,54479.0,0.144032]
[1725765647980,1.18948384,54480.0,54479.0,0.144032]
[1725765648660,1.21826583,54480.0,54479.0,0.144032]
[1725765648884,0.90282783,54480.0,54479.0,0.144032]
[1725765649106,0.91508409,54480.0,54479.0,0.144032]
[1725765649330,1.09863709,54480.0,54479.0,0.144032]
[1725765651112,1.19863709,54480.0,54479.0,0.144032]
[1725765655345,1.1698551,54480.0,54479.0,0.144032]
[1725765658682,1.1986372,54480.0,54479.0,0.144032]
[1725765660416,1.36415508,54480.0,54479.0,0.144032]
[1725765660843,1.36415425,54480.0,54479.0,0.144032]
[1725765661689,1.34115425,54480.0,54479.0,0.144032]
[1725765662796,0.97404725,54480.0,54479.0,0.144032]
[1725765664683,0.94526515,54480.0,54479.0,0.144032]
[1725765664903,0.96447799,54480.0,54479.0,0.144032]
[1725765668186,0.99325958,54480.0,54479.0,0.144032]
[1725765673310,1.36036658,54480.0,54479.0,0.144032]
[1725765675455,1.33158499,54480.0,54479.0,0.144032]
[1725765678555,1.36036661,54480.0,54479.0,0.144032]
[1725765680117,0.80008012,54480.0,54479.0,0.144032]
[1725765680500,1.16718712,54480.0,54479.0,0.144032]
[1725765681076,1.19431328,54480.0,54479.0,0.144032]
[1725765681930,0.82720628,54480.0,54479.0,0.144032]
[1725765682411,1.19431328,54480.0,54479.0,0.144032]
[1725765682645,1.19431328,54480.0,54479.0,0.079932]
[1725765683607,1.19431328,54480.0,54479.0,0.078932]
[1725765683832,1.19631328,54480.0,54479.0,0.077932]
[1725765684309,1.19831328,54480.0,54479.0,0.077932]
[1725765685008,1.17910044,54480.0,54479.0,0.077932]
[1725765685523,1.15031882,54480.0,54479.0,0.077932]
[1725765685779,1.15031882,54480.0,54471.0,0.00163]
[1725765685780,0.18358,54472.0,54471.0,0.00163]
[1725765686006,0.6399104,54472.0,54471.0,0.00163]
[1725765686247,1.04299959,54472.0,54471.0,0.00163]
[1725765687163,1.04399959,54472.0,54471.0,0.00463]
[1725765687392,1.04399959,54472.0,54471.0,0.00663]
[1725765687393,1.41216059,54472.0,54471.0,0.00663]
[1725765687630,1.04499959,54472.0,54471.0,0.00663]
[1725765688343,1.18274044,54472.0,54471.0,0.00663]
[1725765688569,1.18274044,54472.0,54471.0,0.00463]
[1725765688800,1.21052638,54472.0,54471.0,0.00463]
[1725765689031,1.21152638,54472.0,54471.0,0.00663]
[1725765689508,1.57868738,54472.0,54471.0,0.00663]
[1725765689741,1.57768738,54472.0,54471.0,0.00363]
[1725765689972,1.57868738,54472.0,54471.0,0.00663]
[1725765690196,1.43994653,54472.0,54471.0,0.00463]
[1725765690437,1.43994653,54472.0,54471.0,0.00163]
[1725765690438,1.43894653,54472.0,54471.0,0.00163]
[1725765690675,1.43994653,54472.0,54471.0,0.00163]
[1725765690916,1.44094653,54472.0,54471.0,0.00163]
[1725765691353,1.44294653,54472.0,54471.0,0.00163]
[1725765692626,0.18339554,54472.0,54471.0,0.15813]
[1725765692838,0.18339554,54472.0,54471.0,0.70988]
[1725765692839,0.04571413,54472.0,54471.0,0.70988]
[1725765693075,0.04467284,54472.0,54471.0,0.70988]
[1725765693342,0.03278594,54472.0,54471.0,0.70988]
[1725765693561,0.04857802,54472.0,54471.0,0.70988]
[1725765693780,0.03278594,54472.0,54471.0,0.70988]
[1725765694000,0.03078594,54472.0,54471.0,0.70988]
[1725765694216,0.02878594,54472.0,54471.0,0.70988]
[1725765694446,0.03078594,54472.0,54471.0,0.70988]
[1725765694702,0.04758142,54472.0,54471.0,0.71288]
[1725765694932,0.06779426,54472.0,54471.0,0.71288]
[1725765695136,0.06779426,54472.0,54471.0,0.71188]
[1725765695350,0.02021284,54472.0,54471.0,0.71188]
[1725765695574,0.02121284,54472.0,54471.0,0.71188]
[1725765695785,0.02121284,54472.0,54471.0,0.71288]
[1725765696006,0.01921284,54472.0,54471.0,0.70888]
[1725765696219,0.03701427,54472.0,54471.0,0.70888]
[1725765696440,0.03801427,54472.0,54471.0,1.080047]
[1725765696652,0.03801427,54472.0,54471.0,1.079047]
[1725765696862,0.03801427,54472.0,54471.0,1.080047]
[1725765697747,0.03901427,54472.0,54471.0,1.080047]
[1725765698378,0.03801427,54472.0,54471.0,1.079047]
[1725765698610,0.06779637,54472.0,54471.0,1.081047]
[1725765699052,0.06779637,54472.0,54471.0,1.080047]
[1725765699268,0.06779637,54472.0,54471.0,1.081047]
[1725765699485,0.06779637,54472.0,54471.0,0.71388]
[1725765699699,0.06779637,54472.0,54471.0,0.15313]
[1725765699919,0.06779637,54472.0,54471.0,0.336713]
[1725765699920,0.12287475,54472.0,54471.0,0.336713]
[1725765700140,0.12287475,54472.0,54471.0,0.337713]
[1725765700387,0.12287475,54472.0,54471.0,0.336713]
[1725765700613,0.17694898,54472.0,54471.0,0.333713]
[1725765700835,0.1218706,54472.0,54471.0,0.333713]
[1725765701051,0.06679637,54472.0,54471.0,0.333713]
[1725765701310,0.06779637,54472.0,54471.0,0.336713]
[1725765701533,0.06679637,54472.0,54471.0,0.335713]
[1725765701752,0.1228706,54472.0,54471.0,0.337713]
[1725765701962,0.1228706,54472.0,54471.0,0.336713]
[1725765702386,0.1238706,54472.0,54471.0,0.337713]
[1725765702593,0.1228706,54472.0,54471.0,0.334713]
[1725765703000,0.1238706,54472.0,54471.0,0.336713]
[1725765703645,0.1228706,54472.0,54471.0,0.334713]
[1725765703873,0.1238706,54472.0,54471.0,0.336713]
[1725765704528,0.1208706,54472.0,54471.0,0.332713]
[1725765704749,0.1208706,54472.0,54471.0,0.334713]
[1725765705005,0.1218706,54472.0,54471.0,0.334713]
[1725765705229,0.1218706,54472.0,54471.0,0.332713]
[1725765705454,0.0940885,54472.0,54471.0,0.334713]
[1725765705872,0.0950885,54472.0,54471.0,0.337713]
[1725765706338,0.0940885,54472.0,54471.0,0.334713]
[1725765706760,0.0950885,54472.0,54471.0,0.337713]
[1725765707439,0.04001427,54472.0,54471.0,0.337713]
[1725765707902,0.09509009,54472.0,54471.0,0.337713]
[1725765708331,0.04001427,54472.0,54471.0,0.337713]
[1725765708543,0.0950903,54472.0,54471.0,0.337713]
[1725765708765,0.06879738,54472.0,54471.0,0.337713]
[1725765709009,0.12387348,54472.0,54471.0,0.337713]
[1725765709216,0.06879738,54472.0,54471.0,0.337713]
[1725765709442,0.12387154,54472.0,54471.0,0.70488]
[1725765709657,0.06879738,54472.0,54471.0,0.337713]
[1725765710119,0.12387141,54472.0,54471.0,0.337713]
[1725765711426,0.12387141,54472.0,54471.0,0.70488]
[1725765713003,0.12387141,54472.0,54471.0,0.337713]
[1725765713238,0.12387141,54472.0,54471.0,0.70488]
[1725765715041,0.10465857,54472.0,54471.0,0.70488]
[1725765715280,0.07587546,54472.0,54471.0,0.70488]
[1725765715759,0.07588466,54472.0,54471.0,0.70488]
[1725765716650,0.02080143,54472.0,54471.0,0.70488]
[1725765716870,0.07588466,54472.0,54471.0,0.70488]
[1725765718714,0.10466767,54472.0,54471.0,0.70488]
[1725765720755,0.10467341,54472.0,54471.0,0.70488]
[1725765720975,0.04958444,54472.0,54471.0,0.70488]
[1725765721194,0.10467341,54472.0,54471.0,0.70488]
[1725765721832,0.04958444,54472.0,54471.0,0.70488]
[1725765723142,0.10467758,54472.0,54471.0,0.70488]
[1725765723580,0.04958444,54472.0,54471.0,0.70488]
[1725765723799,0.10468055,54472.0,54471.0,0.70488]
[1725765724046,0.04958444,54472.0,54471.0,0.70488]
[1725765724988,0.06879728,54472.0,54471.0,0.70488]
[1725765725443,0.04001427,54472.0,54471.0,0.70488]
[1725765727711,0.06720164,54472.0,54471.0,0.70488]
[1725765728860,0.09598461,54472.0,54471.0,0.70488]
[1725765731424,0.15108709,54472.0,54471.0,0.70488]
[1725765731835,0.09598461,54472.0,54471.0,0.70488]
[1725765732043,0.15108716,54472.0,54471.0,0.70488]
[1725765732467,0.09598461,54472.0,54471.0,0.70488]
[1725765734469,0.17863331,54472.0,54471.0,0.70488]
[1725765735109,0.17866577,54472.0,54471.0,0.70488]
[1725765735321,0.1498828,54472.0,54471.0,0.70488]
[1725765736475,0.14990839,54472.0,54471.0,0.70488]
[1725765736712,0.14990735,54472.0,54471.0,0.70488]
[1725765736942,0.06720164,54472.0,54471.0,0.70488]
[1725765737392,0.17744319,54472.0,54471.0,0.70488]
[1725765737632,0.06720164,54472.0,54471.0,0.70488]
[1725765737846,0.17744319,54472.0,54471.0,0.70488]
[1725765738705,0.20622617,54472.0,54471.0,0.70488]
[1725765739376,0.09598462,54472.0,54471.0,0.70488]
[1725765739653,0.07818319,54472.0,54471.0,0.70488]
[1725765741325,0.09607574,54472.0,54471.0,0.70488]
[1725765741532,0.05047611,54472.0,54471.0,0.70488]
[1725765741741,0.09607569,54472.0,54471.0,0.70488]
[1725765744326,0.23387763,54472.0,54471.0,0.70488]
[1725765745364,0.20527545,54472.0,54471.0,0.70488]
[1725765747135,0.20527545,54472.0,54471.0,0.00563]
[1725765747367,0.25087276,54472.0,54471.0,0.00563]
[1725765748026,0.24987276,54472.0,54471.0,0.00263]
[1725765749293,0.24787276,54472.0,54471.0,0.00363]
[1725765749501,0.24787276,54472.0,54471.0,0.00463]
[1725765749883,0.24787276,54472.0,54471.0,0.00363]
[1725765750105,0.24787276,54472.0,54471.0,0.00163]
[1725765750328,0.01787944,54472.0,54471.0,0.00263]
[1725765750601,0.12827953,54472.0,54471.0,0.00463]
[1725765751272,0.31185953,54472.0,54471.0,0.00463]
[1725765751480,0.01787944,54472.0,54471.0,0.07123]
[1725765751701,0.29062884,54472.0,54471.0,0.07123]
[1725765751903,0.29062884,54472.0,54471.0,0.07223]
[1725765752111,0.40102893,54472.0,54471.0,0.07223]
[1725765752578,0.42981244,54472.0,54471.0,0.07223]
[1725765753451,0.42981244,54472.0,54471.0,0.07123]
[1725765754799,0.31941235,54472.0,54471.0,0.07123]
[1725765755033,0.42981244,54472.0,54471.0,0.07123]
[1725765755441,0.42980439,54472.0,54471.0,0.07123]
[1725765755701,0.40102088,54472.0,54471.0,0.07123]
[1725765756623,0.29062884,54472.0,54471.0,0.07123]
[1725765756839,0.40102088,54472.0,54471.0,0.07123]
[1725765757691,0.40102088,54472.0,54471.0,0.00463]
[1725765757692,0.76818188,54472.0,54471.0,0.00463]
[1725765757909,0.40102088,54472.0,54471.0,0.00463]
[1725765760156,0.29062884,54472.0,54471.0,0.00463]
[1725765761656,0.12527525,54472.0,54471.0,0.00463]
[1725765761869,0.24322864,54472.0,54471.0,0.00463]
[1725765762218,0.42680864,54472.0,54471.0,0.00463]
[1725765762653,0.31642831,54472.0,54471.0,0.00463]
[1725765763023,0.42680864,54472.0,54471.0,0.00463]
[1725765763836,0.31642831,54472.0,54471.0,0.00463]
[1725765764341,0.42680864,54472.0,54471.0,0.00463]
[1725765765161,0.39802465,54472.0,54471.0,0.00463]
[1725765765595,0.39802172,54472.0,54471.0,0.00263]
[1725765765802,0.41723456,54472.0,54471.0,0.00163]
[1725765766064,0.41723456,54472.0,54471.0,0.00263]
[1725765766678,0.41723456,54472.0,54471.0,0.00363]
[1725765766884,0.41723456,54472.0,54471.0,0.00263]
[1725765767208,0.41723456,54472.0,54471.0,0.00363]
[1725765768759,0.01966753,54472.0,54471.0,0.00363]
[1725765768970,0.14658827,54472.0,54471.0,0.00363]
[1725765769391,0.33016827,54472.0,54471.0,0.00363]
[1725765772320,0.14658827,54472.0,54471.0,0.00363]
[1725765772534,0.22937006,54472.0,54471.0,0.00363]
[1725765772745,0.14658827,54472.0,54471.0,0.00363]
[1725765772983,0.14658827,54472.0,54471.0,0.06363]
[1725765773192,0.14658827,54472.0,54471.0,0.06263]
[1725765773405,0.14658827,54472.0,54471.0,0.06363]
[1725765773623,0.14658827,54472.0,54471.0,0.06263]
[1725765773842,0.14658827,54472.0,54471.0,0.06363]
[1725765774080,0.14658827,54472.0,54471.0,0.06263]
[1725765774294,0.14740327,54472.0,54471.0,0.06263]
[1725765775373,0.11861932,54472.0,54471.0,0.14293]
[1725765778881,0.11861932,54472.0,54471.0,0.08193]
[1725765779094,0.25658276,54472.0,54471.0,0.08193]
[1725765780964,0.25658423,54472.0,54471.0,0.08193]
[1725765781208,0.25658423,54472.0,54471.0,0.00463]
[1725765781890,0.28536878,54472.0,54471.0,0.00463]
[1725765783588,0.14740387,54472.0,54471.0,0.00463]
[1725765783817,0.28536647,54472.0,54471.0,0.00463]
[1725765784329,0.14740387,54472.0,54471.0,0.00463]
[1725765784777,0.28536707,54472.0,54471.0,0.00463]
[1725765785004,0.28536604,54472.0,54471.0,0.00463]
[1725765785465,0.14740387,54472.0,54471.0,0.00463]
[1725765785938,0.11861932,54472.0,54471.0,0.00463]
[1725765787698,0.25657616,54472.0,54471.0,0.00463]
[1725765787916,0.11861932,54472.0,54471.0,0.00463]
[1725765789304,0.14740298,54472.0,54471.0,0.00463]
[1725765789981,0.33098298,54472.0,54471.0,0.00463]
[1725765792488,0.72114398,54472.0,54471.0,0.00463]
[1725765793841,0.72114398,54472.0,54471.0,0.00363]
[1725765794065,0.72114398,54472.0,54471.0,0.00463]
[1725765794388,0.72114398,54472.0,54471.0,0.00263]
[1725765795254,0.72114398,54472.0,54471.0,0.00363]
[1725765795472,0.69236032,54472.0,54471.0,0.00363]
[1725765795710,0.69236032,54472.0,54471.0,0.00263]
[1725765795916,0.69236032,54472.0,54471.0,0.00163]
[1725765796294,0.69636032,54472.0,54471.0,0.00163]
[1725765796498,0.69436032,54472.0,54471.0,0.00163]
[1725765796933,0.69636032,54472.0,54471.0,0.00163]
[1725765797185,0.69436032,54472.0,54471.0,0.00163]
[1725765797607,0.69636032,54472.0,54471.0,0.00163]
[1725765798043,0.69436032,54472.0,54471.0,0.00163]
[1725765798483,0.69636032,54472.0,54471.0,0.00163]
[1725765801768,0.72314419,54472.0,54471.0,0.00163]
[1725765801991,0.78634419,54472.0,54471.0,0.00163]
[1725765802237,0.78734419,54472.0,54471.0,0.00163]
[1725765802451,0.78534419,54472.0,54471.0,0.00163]
[1725765802671,0.78634419,54472.0,54471.0,0.00163]
[1725765802842,0.72314419,54472.0,54471.0,0.00163]
[1725765804440,1.09030519,54472.0,54471.0,0.00163]
[1725765804999,0.87727527,54472.0,54471.0,0.00163]
[1725765805223,1.0320714,54472.0,54471.0,0.00163]
[1725765807804,1.4624324,54472.0,54471.0,0.00163]
[1725765808156,1.4634324,54472.0,54471.0,0.00163]
[1725765808390,1.4002324,54472.0,54471.0,0.00163]
[1725765808578,1.0330714,54472.0,54471.0,0.00163]
[1725765809488,1.06185745,54472.0,54471.0,0.00163]
[1725765810992,1.06267245,54472.0,54471.0,0.00163]
[1725765815134,1.2280387,54472.0,54471.0,0.00163]
[1725765815401,1.0338864,54472.0,54471.0,0.00163]
[1725765817907,1.0338864,54472.0,54471.0,0.08303]
[1725765817908,0.576556,54472.0,54471.0,0.08303]
[1725765818123,0.6657254,54472.0,54471.0,0.14703]
[1725765819038,0.69451088,54472.0,54471.0,0.14703]
[1725765825271,0.6657254,54472.0,54471.0,0.14703]
[1725765829084,0.6657254,54472.0,54471.0,0.08303]
[1725765837220,1.0328864,54472.0,54471.0,0.08303]
[1725765837426,0.6657254,54472.0,54471.0,0.00163]
[1725765837644,1.0328864,54472.0,54471.0,0.00163]
[1725765839795,1.0616713,54472.0,54471.0,0.00163]
[1725765841019,1.0626713,54472.0,54471.0,0.00163]
[1725765845439,1.0338864,54472.0,54471.0,0.00163]
[1725765847113,1.0338864,54472.0,54471.0,0.06683]
[1725765848718,1.06267148,54472.0,54471.0,0.06683]
[1725765849554,1.06167148,54472.0,54471.0,0.06683]
[1725765851201,0.69451048,54472.0,54471.0,0.06683]
[1725765851345,0.69451048,54472.0,54471.0,0.14643]
[1725765851544,0.32734948,54472.0,54471.0,0.14643]
[1725765851780,0.32734948,54472.0,54471.0,0.14743]
[1725765853190,0.15597507,54472.0,54471.0,0.14743]
[1725765853615,0.33955507,54472.0,54471.0,0.14743]
[1725765855215,0.32148905,54472.0,54471.0,0.14743]
[1725765855797,0.41065845,54472.0,54471.0,0.14743]
[1725765856415,0.41147345,54472.0,54471.0,0.14743]
[1725765857746,0.2735644,54472.0,54471.0,0.14743]
[1725765858575,0.30234859,54472.0,54471.0,0.14743]
[1725765859206,0.30224859,54472.0,54471.0,0.14743]
[1725765862691,0.44016656,54472.0,54471.0,0.14743]
[1725765862889,0.30224859,54472.0,54471.0,0.14743]
[1725765864582,0.02959919,54472.0,54471.0,0.14743]
[1725765864826,0.11876859,54472.0,54471.0,0.14743]
[1725765865289,0.0899844,54472.0,54471.0,0.14743]
[1725765867396,0.2735644,54472.0,54471.0,0.14643]
[1725765868250,0.0899844,54472.0,54471.0,0.14643]
[1725765868662,0.1187686,54472.0,54471.0,0.14643]
[1725765869270,0.1197686,54472.0,54471.0,0.14643]
[1725765869894,0.1187686,54472.0,54471.0,0.14643]
[1725765870108,0.1197686,54472.0,54471.0,0.14643]
[1725765870750,0.1187686,54472.0,54471.0,0.14643]
[1725765871145,0.1187686,54472.0,54471.0,0.14743]
[1725765873844,0.1187686,54472.0,54471.0,0.14843]
[1725765874544,0.1187686,54472.0,54471.0,0.332013]
[1725765875233,0.0899844,54472.0,54471.0,0.332013]
[1725765877405,0.0899844,54472.0,54471.0,0.331013]
[1725765878268,0.0899844,54472.0,54471.0,0.14743]
[1725765878497,0.0899844,54472.0,54471.0,0.08223]
[1725765878724,0.0899844,54472.0,54471.0,0.265813]
[1725765880508,0.0899844,54472.0,54471.0,0.08223]
[1725765881651,0.11876869,54472.0,54471.0,0.08223]
[1725765882889,0.11876869,54472.0,54471.0,0.00263]
[1725765883799,0.30234869,54472.0,54471.0,0.00263]
[1725765884046,1.05967069,54472.0,54471.0,0.00263]
[1725765884288,0.983535,54470.0,54469.0,0.29193054]
[1725765884496,0.983535,54470.0,54469.0,0.07596752]
[1725765884497,1.373709,54470.0,54469.0,0.07596752]
[1725765885149,1.39292184,54470.0,54469.0,0.07596752]
[1725765886592,1.40292184,54470.0,54469.0,0.07596752]
[1725765887209,1.41292184,54470.0,54469.0,0.07596752]
[1725765887809,1.44171057,54470.0,54469.0,0.07596752]
[1725765888128,1.41292184,54470.0,54469.0,0.07596752]
[1725765892752,1.44171052,54470.0,54469.0,0.07596752]
[1725765895198,1.51359217,54470.0,54469.0,0.07596752]
[1725765896496,1.51356283,54470.0,54469.0,0.07596752]
[1725765898696,1.54234953,54470.0,54469.0,0.07596752]
[1725765899379,1.54233831,54470.0,54469.0,0.07596752]
[1725765900016,1.37710854,54470.0,54469.0,0.07596752]
[1725765900225,1.54232505,54470.0,54469.0,0.07596752]
[1725765900877,1.54232017,54470.0,54469.0,0.07596752]
[1725765901311,1.51353347,54470.0,54469.0,0.07596752]
[1725765901922,1.49513563,54470.0,54469.0,0.07596752]
[1725765903029,1.52392229,54470.0,54469.0,0.07596752]
[1725765903256,1.35871066,54470.0,54469.0,0.07596752]
[1725765904595,1.52392229,54470.0,54469.0,0.07596752]
[1725765904819,1.35871066,54470.0,54469.0,0.07596752]
[1725765906121,1.52392229,54470.0,54469.0,0.07596752]
[1725765906335,1.52392229,54470.0,54469.0,0.15666752]
[1725765906336,1.35871066,54470.0,54469.0,0.15666752]
[1725765907765,1.52392229,54470.0,54469.0,0.15666752]
[1725765909598,1.35871066,54470.0,54469.0,0.15666752]
[1725765909833,1.52392229,54470.0,54469.0,0.15666752]
[1725765910010,1.35871066,54470.0,54469.0,0.15666752]
[1725765910265,1.52392229,54470.0,54469.0,0.15666752]
[1725765910906,1.52392229,54470.0,54469.0,0.07596752]
[1725765913284,1.61309169,54470.0,54469.0,0.07596752]
[1725765913701,1.52392229,54470.0,54469.0,0.07596752]
[1725765913924,1.61309169,54470.0,54469.0,0.07596752]
[1725765915117,1.44788006,54470.0,54469.0,0.07596752]
[1725765915335,1.4190934,54470.0,54469.0,0.07596752]
[1725765916306,1.58430503,54470.0,54469.0,0.07596752]
[1725765917458,1.58430503,54470.0,54469.0,0.13816752]
[1725765918590,1.61309145,54470.0,54469.0,0.13816752]
[1725765920778,1.61305791,54470.0,54469.0,0.13816752]
[1725765921403,1.48633059,54470.0,54469.0,0.13816752]
[1725765925309,1.45754417,54470.0,54469.0,0.13816752]
[1725765928595,1.48633054,54470.0,54469.0,0.13816752]
[1725765934587,0.04960137,54470.0,54469.0,0.21986752]
[1725765934822,0.18629655,54470.0,54469.0,0.40345752]
[1725765935047,0.020815,54470.0,54469.0,0.40345752]
[1725765935510,0.020815,54470.0,54469.0,0.40445752]
[1725765935511,0.010815,54470.0,54469.0,0.40445752]
[1725765935732,0.000815,54470.0,54469.0,0.22086752]
[1725765935965,0.000815,54470.0,54469.0,0.21986752]
[1725765936189,0.000815,54470.0,54469.0,0.40345752]
[1725765936415,0.000815,54470.0,54469.0,0.40445752]
[1725765937315,0.000815,54470.0,54469.0,0.22086752]
[1725765937573,0.010815,54470.0,54469.0,0.22086752]
[1725765938019,0.000815,54470.0,54469.0,0.22086752]
[1725765938712,0.11022518,54470.0,54469.0,0.07696752]
[1725765939002,0.19939458,54470.0,54469.0,0.26055752]
[1725765939231,0.19939458,54470.0,54469.0,0.40345752]
[1725765939465,0.22817984,54470.0,54469.0,0.21886752]
[1725765939690,0.13901044,54470.0,54469.0,0.21886752]
[1725765939921,0.22817984,54470.0,54469.0,0.21886752]
[1725765940846,0.02878526,54470.0,54469.0,0.40345752]
[1725765941076,0.02878526,54470.0,54469.0,0.40245752]
[1725765942015,0.02878526,54470.0,54469.0,0.40445752]
[1725765942472,0.02878526,54470.0,54469.0,0.40545752]
[1725765944548,0.02878526,54470.0,54469.0,0.40445752]
[1725765945437,0.11020533,54471.0,54470.0,0.0644]
[1725765945658,0.19937473,54472.0,54470.0,0.0654]
[1725765945893,0.11020533,54471.0,54470.0,0.0654]
[1725765946349,0.11019395,54471.0,54470.0,0.0654]
[1725765946816,0.19936335,54472.0,54470.0,0.0654]
[1725765947032,0.19936335,54472.0,54471.0,0.1404]
[1725765948547,0.20034479,54472.0,54471.0,0.1404]
[1725765948762,0.11895389,54472.0,54471.0,0.1404]
[1725765949923,0.30234889,54472.0,54471.0,0.1404]
[1725765950349,0.30334889,54472.0,54471.0,0.1404]
[1725765950824,0.30234889,54472.0,54471.0,0.1404]
[1725765951249,0.30234889,54472.0,54471.0,0.1424]
[1725765952966,0.30234889,54472.0,54471.0,0.1404]
[1725765953385,0.30334889,54472.0,54471.0,0.1404]
[1725765953810,0.30234889,54472.0,54471.0,0.1404]
[1725765954231,0.30334889,54472.0,54471.0,0.1404]
[1725765955376,0.4122562,54472.0,54471.0,0.1404]
[1725765956702,0.77841147,54472.0,54471.0,0.1404]
[1725765957186,0.77941147,54472.0,54471.0,0.1404]
[1725765957597,0.77841147,54472.0,54471.0,0.1404]
[1725765958066,0.77941147,54472.0,54471.0,0.1404]
[1725765958757,0.808196,54472.0,54471.0,0.1404]
[1725765961150,0.80819726,54472.0,54471.0,0.1404]
[1725765965138,0.77941273,54472.0,54471.0,0.1404]
[1725765965604,0.77942149,54472.0,54471.0,0.1404]
[1725765967386,0.6417254,54472.0,54471.0,0.1354]
[1725765967606,0.77944243,54472.0,54471.0,0.1354]
[1725765968469,0.80822715,54472.0,54471.0,0.1354]
[1725765970742,0.80824559,54472.0,54471.0,0.1354]
[1725765972314,0.67051012,54472.0,54471.0,0.1354]
[1725765975414,0.6417254,54472.0,54471.0,0.1354]
[1725765975822,1.0088864,54472.0,54471.0,0.1354]
[1725765978640,1.03767148,54472.0,54471.0,0.1354]
[1725765980463,1.20300523,54472.0,54471.0,0.1354]
[1725765982900,0.917917,54471.0,54470.0,0.00163]
[1725765986468,0.918917,54471.0,54470.0,0.00163]
[1725765987835,1.08425075,54471.0,54470.0,0.00163]
[1725765988790,1.11303669,54471.0,54470.0,0.00163]
[1725765989694,1.48020369,54471.0,54470.0,0.00163]
[1725765989922,1.50320369,54471.0,54470.0,0.00163]
[1725765994504,1.56850369,54471.0,54470.0,0.00163]
[1725765995215,1.50320369,54471.0,54470.0,0.00163]
[1725765995443,1.309084,54471.0,54470.0,0.00163]
[1725765996282,1.47451046,54471.0,54470.0,0.00163]
[1725765996633,1.47326523,54471.0,54470.0,0.00163]
[1725765996838,1.30783877,54471.0,54470.0,0.00163]
[1725765998625,1.336626,54471.0,54470.0,0.00163]
[1725765998836,1.15428823,54471.0,54470.0,0.00163]
[1725765999045,1.33787123,54471.0,54470.0,0.00163]
[1725765999259,1.50328913,54471.0,54470.0,0.00163]
[1725765999473,1.33787123,54471.0,54470.0,0.00163]
[1725765999673,1.33787123,54471.0,54470.0,0.06683]
[1725765999914,1.42704063,54471.0,54470.0,0.06683]
[1725766000313,1.42704063,54471.0,54470.0,0.00163]
[1725766005426,1.3982534,54471.0,54470.0,0.00163]
[1725766007493,1.3990684,54471.0,54470.0,0.00163]
[1725766008647,1.42785477,54471.0,54470.0,0.00163]
[1725766013158,1.59322053,54471.0,54470.0,0.00163]
[1725766014300,1.42785477,54471.0,54470.0,0.00163]
[1725766014554,1.59322575,54471.0,54470.0,0.00163]
[1725766015431,1.56443938,54471.0,54470.0,0.00163]
[1725766016506,1.56438553,54471.0,54470.0,0.00163]
[1725766018800,1.59417195,54471.0,54470.0,0.00163]
[1725766019011,1.59417195,54471.0,54469.0,0.07596752]
[1725766019012,1.286109,54470.0,54469.0,0.06528458]
[1725766019224,1.309109,54470.0,54469.0,0.06528458]
[1725766022073,1.310109,54470.0,54469.0,0.06528458]
[1725766028779,1.33889548,54470.0,54469.0,0.06528458]
[1725766031361,1.33971048,54470.0,54469.0,0.06528458]
[1725766035304,1.310924,54470.0,54469.0,0.06528458]
[1725766036378,1.311924,54470.0,54469.0,0.06528458]
[1725766038239,1.310924,54470.0,54469.0,0.06528458]
[1725766038729,1.33971185,54470.0,54469.0,0.06528458]
[1725766039877,1.34071185,54470.0,54469.0,0.06528458]
[1725766040335,1.33971185,54470.0,54469.0,0.06528458]